[Event "26th Womens ECCC 2022"]
[Site "Mayrhofen"]
[Date "2022.10.03"]
[Round "1.22"]
[White "Kiolbasa, Oliwia"]
[Black "Belenkaya, Dina"]
[Result "1-0"]
[ECO "B12"]
[WhiteElo "2404"]
[BlackElo "2263"]
[Annotator "TA"]
[PlyCount "131"]
[EventDate "2022.10.03"]
[EventType "team-tourn"]
[EventCountry "AUT"]
[SourceTitle "playchess.com"]
[Source "ChessBase"]
[SourceQuality "1"]
[TimeControl "40/5400+30:1800+30"]

{[%evp 9,131,21,21,21,29,-29,-17,-25,-13,-16,-39,-35,-43,-62,-65,-66,-58,-63,-50,-61,15,8,35,24,31,32,28,33,33,41,47,36,33,0,0,0,12,0,0,0,21,22,18,0,6,0,89,54,105,92,163,187,555,586,566,560,620,599,680,680,662,641,628,450,442,442,1005,1005,916,666,903,896,735,726,721,719,29972,29973,29966,526,684,655,29973,29974,29974,29976,29975,29977,29980,29980,29981,29978,29978,29978,29978,29978,29979,29977,29978,29978,29978,29976,29980,29981,29989,29979,29978,29977,29974,0,29980,29981,29981,29982,29982,29978,29982,29979,29979,29980,29985,29981,29983,29984]} 1. e4 {[%emt 0:00:03]} c6 {[%emt 0:00:07]} 2. d4 {[%emt 0:00:07]} d5 {[%emt 0:00:03]} 3. e5 {[%emt 0:00:07]} c5 {[%emt 0:00:09]} 4. dxc5 {[%emt 0:00:09]} e6 {[%emt 0:00:04]} 5. Nf3 {[%emt 0:00:36]} Bxc5 {[%emt 0:00:15]} 6. Bd3 {[%emt 0:00:11] B12: Caro-Kann: Advance Variation.} Ne7 {[%emt 0:00:34] is recently more successful than 6...Nc6.} 7. Bf4 {[%emt 0:00:20]} (7. O-O $142) 7... Qb6 $11 {[%emt 0:00:48][%csl LRb2,LRf2]} 8. O-O {[%emt 0:01:09] The position is equal.} Qxb2 {[%emt 0:00:34]} 9. Nbd2 {[%emt 0:01:04]} Ng6 {[%emt 0:00:34]} 10. Bg3 {[%emt 0:15:56]} Nc6 {[%emt 0:00:30] [#]} 11. Nb3 $146 {[%emt 0:02:35]} ({Predecessor:} 11. Re1 Qc3 12. Rb1 O-O 13. Rb3 Qa5 14. Rb5 Qa3 15. Nb1 Bxf2+ 16. Bxf2 Qxa2 17. Bc5 {1-0 (26) Chartier,A-Chery,E Paris 1993}) 11... Bb6 {[%emt 0:01:49][%cal Rg6e5]} 12. a4 {[%emt 0:05:19] aiming for Qd2.} Qc3 {[%emt 0:14:52]} ({Don't do} 12... Ngxe5 13. Nxe5 Nxe5 14. Bb5+ Nc6 15. Re1 $11) 13. Re1 {[%emt 0:09:22][%cal Oa4a5]} h6 {[%emt 0:04:56]} 14. h4 {[%emt 0:10:43]} Qb4 {[%emt 0:16:21]} ({Better is} 14... O-O $15) 15. a5 {[%emt 0:06:02]} Bxa5 {[%emt 0:14:52]} ({Much less strong is} 15... Nxa5 16. Nxa5 Bxa5 17. c3 Qxc3 18. Bxg6 $16) (15... Bc7 {seems wilder.} 16. c3 Qxc3 17. Nfd4 a6) 16. Nxa5 {[%emt 0:12:24]} Nxa5 {[%emt 0:00:09]} 17. Bxg6 {[%emt 0:00:03]} fxg6 {[%emt 0:00:09]} 18. Qd3 {[%emt 0:00:07]} Nc6 {[%emt 0:05:25][%cal Ba5c6,Bc6e7,Be7f5][%mdl 32]} 19. Qxg6+ {[%emt 0:03:05]} Kf8 {[%emt 0:00:16]} 20. Reb1 {[%emt 0:07:55][%mdl 1024] White has compensation.} Qc4 {[%emt 0:30:50]} 21. c3 {[%emt 0:05:12][%cal Of3d4]} Ne7 {[%emt 0:01:37]} 22. Qc2 {[%emt 0:00:09]} Nf5 {[%emt 0:00:41] Against Nd4} 23. Rb4 $36 {[%emt 0:13:12][%mdl 2048] White is more active.} Qc5 {[%emt 0:01:16]} 24. Bh2 {[%emt 0:00:18]} b6 {[%emt 0:02:38]} 25. Qb3 {[%emt 0:02:24][%cal Ob4b6]} Bb7 {[%emt 0:01:51]} (25... Kf7 {looks sharper.} 26. g4 Ne7 27. Rxb6 axb6 28. Rxa8 Rf8) 26. g4 {[%emt 0:00:59]} Ne7 {[%emt 0:00:16]} 27. Nd4 {[%emt 0:00:11]} Qc8 {[%emt 0:01:26]} (27... Kf7 $11) 28. Nb5 {[%emt 0:00:15] White is much more active. The black rooks are badly placed. White stays focused until the end.} Kg8 {[%emt 0:00:42]} (28... a5 $14 29. Rf4+ Kg8) 29. Rxa7 $16 {[%emt 0:02:50] And now Nd6 would win.} Rxa7 {[%emt 0:00:40]} (29... d4 $16 30. Rxa8 Bxa8 31. Nxd4 Kf7) 30. Nxa7 $18 {[%emt 0:00:02][%mdl 64] [#] Discovered Attack} Qb8 {[%emt 0:00:22]} (30... Qc7 {is tougher.}) 31. Rxb6 {[%emt 0:00:58]} Qxa7 {[%emt 0:00:02]} 32. Rxb7 {[%emt 0:00:07]} Qa1+ {[%emt 0:00:04]} 33. Kg2 {[%emt 0:00:33]} Kf7 {[%emt 0:01:35] [#]} 34. Rxe7+ $1 {[%emt 0:01:05][%mdl 512]} Kxe7 {[%emt 0:00:01][%mdl 4096] Endgame KQR-KQB} 35. Qb7+ {[%emt 0:00:06]} Kf8 {[%emt 0:00:03]} 36. Qc8+ {[%emt 0:00:18]} Kf7 {[%emt 0:00:01]} 37. Qxh8 {[%emt 0:00:24]} Qxc3 {[%emt 0:01:25]} (37... Qd1 $142 38. Qd8 Qxg4+ 39. Bg3 Qe4+ 40. Kg1 Qb1+ 41. Kh2 Qf5 42. Qd7+ Kf8) 38. Qd8 {[%emt 0:00:52] Intending Qd7+ and mate.} Qc6 {[%emt 0:00:11] Inhibits Qd7+.} 39. Qd6 {[%emt 0:01:20]} Qb7 {[%emt 0:00:02]} 40. Bf4 {[%emt 0:01:00]} d4+ {[%emt 0:00:56]} 41. f3 {[%emt 0:09:17]} Qb2+ {[%emt 0:00:49]} 42. Kg3 {[%emt 0:00:05]} Qc3 {[%emt 0:03:16]} 43. Qd7+ {[%emt 0:01:01]} Kf8 {[%emt 0:00:04]} 44. Qb5 {[%emt 0:02:59]} (44. Qd8+ $142 Kf7 45. Qd7+ Kf8 46. Qd6+ Kf7 47. Qd7+) 44... d3 {[%emt 0:01:10]} 45. Qb1 {[%emt 0:01:32] Against Qe1+} g5 {[%emt 0:03:04]} 46. hxg5 {[%emt 0:02:11]} hxg5 {[%emt 0:06:17]} 47. Bxg5 {[%emt 0:00:07]} Qxe5+ {[%emt 0:01:30]} 48. Bf4 {[%emt 0:00:09]} Qe2 {[%emt 0:10:08]} 49. Qc1 {[%emt 0:00:13]} Kf7 {[%emt 0:03:29]} 50. Qd2 {[%emt 0:01:04]} Qf1 {[%emt 0:00:17]} 51. Qf2 {[%emt 0:00:09]} Qd1 {[%emt 0:01:18]} 52. Bd2 {[%emt 0:00:10]} Qb1 {[%emt 0:02:27]} 53. Kg2 {[%emt 0:00:26]} e5 {[%emt 0:00:20]} 54. Qe1 {[%emt 0:02:43]} Qc2 {[%emt 0:01:18]} 55. Kg3 {[%emt 0:00:17]} Qc7 {[%emt 0:01:57]} 56. Qe4 {[%emt 0:00:23]} Qc2 {[%emt 0:00:53]} 57. Qe3 {[%emt 0:00:06]} Qc7 {[%emt 0:01:06]} 58. Kf2 {[%emt 0:00:40]} Qc2 {[%emt 0:00:24]} 59. Kg3 $2 {[%emt 0:02:08]} (59. g5 {mates} Kg8 60. Kg3 Qc7 61. Qe4 Qc5 62. Qxd3 Kg7 63. Qd7+ Kg6 64. Qe6+ Kg7 65. Kg2) 59... Kf6 $2 {[%emt 0:00:32][%mdl 8192]} (59... Qc7 $11 60. Qh6 Qc5 61. Qh7+ Kf8 62. Qxd3 Kg8) 60. g5+ {[%emt 0:02:19] White mates.} Kf7 {[%emt 0:00:24]} 61. Kh4 {[%emt 0:00:57]} Qb1 {[%emt 0:00:30]} 62. Kg4 {[%emt 0:03:00]} Qf1 {[%emt 0:00:37]} 63. Kf5 {[%emt 0:00:37]} Qh3+ {[%emt 0:00:32]} 64. Kxe5 {[%emt 0:00:12]} Qd7 {[%emt 0:00:24]} 65. Ke4 {[%emt 0:03:14]} Qb5 {[%emt 0:00:36]} 66. Qxd3 {[%emt 0:00:32] Weighted Error Value: White=0.27 (precise) /Black=0.49} 1-0

[Event "26th Womens ECCC 2022"]
[Site "Mayrhofen"]
[Date "2022.10.03"]
[Round "1.22"]
[White "Schloffer, Jasmin-Denise"]
[Black "Roebers, Eline"]
[Result "*"]
[ECO "B12"]
[WhiteElo "2086"]
[BlackElo "2352"]
[Annotator "TA"]
[PlyCount "31"]
[EventDate "2022.10.03"]
[EventType "team-tourn"]
[EventCountry "AUT"]
[SourceTitle "playchess.com"]
[Source "ChessBase"]
[SourceQuality "1"]
[TimeControl "40/5400+30:1800+30"]

{[%evp 9,18,9,27,17,22,-9,-35,-23,-25,-22,0]} 1. e4 {[%emt 0:00:03] Lukacs,P} c6 {[%emt 0:00:07]} 2. d4 {[%emt 0:00:07]} d5 {[%emt 0:00:03]} 3. e5 {[%emt 0:00:07]} c5 {[%emt 0:00:09]} 4. dxc5 {[%emt 0:00:09]} e6 {[%emt 0:00:04]} 5. Nf3 {[%emt 0:00:36]} Bxc5 {[%emt 0:00:15]} 6. Bd3 {[%emt 0:00:11] B12: Caro-Kann: Advance Variation.} Ne7 {[%emt 0:00:34] is currently scoring better than 6...Nc6.} 7. Bf4 {[%emt 0:00:20]} Qb6 {[%emt 0:00:48][%csl LRb2,LRf2]} 8. O-O {[%emt 0:01:09]} Qxb2 {[%emt 0:00:34]} 9. Nbd2 {[%emt 0:01:04]} Ng6 {[%emt 0:00:34] [#] A balanced but interesting game.  Weighted Error Value: White=0.09 (flawless) /Black=0.01 (flawless)} {Predecessor:} 10. Bg3 $146 Qc3 11. Rb1 Bb6 12. Rb3 Qc5 13. Ng5 Nc6 14. Qh5 Ncxe5 15. Bxe5 Nxe5 16. Bb5+ {½-½ (31) Prasad,D (2421)-Prakash,G (2435) Guntur 2000 CBM 077 [Lukacs,P]} *

[Event "26th Womens ECCC 2022"]
[Site "Mayrhofen"]
[Date "2022.10.03"]
[Round "1.23"]
[White "Heinemann, Josefine"]
[Black "Schnegg, Anna-Lena"]
[Result "*"]
[ECO "C54"]
[WhiteElo "2318"]
[BlackElo "2154"]
[Annotator "RC"]
[PlyCount "21"]
[EventDate "2022.10.03"]
[EventType "team-tourn"]
[EventCountry "AUT"]
[SourceTitle "playchess.com"]
[Source "ChessBase"]
[SourceQuality "1"]
[TimeControl "40/5400+30:1800+30"]

1. e4 {[%emt 0:00:15]} e5 {[%emt 0:00:07]} 2. Nf3 {[%emt 0:00:09]} Nc6 {[%emt 0:00:07]} 3. Bc4 {[%emt 0:00:14]} Bc5 {[%emt 0:00:25]} 4. c3 {[%emt 0:00:07]} Nf6 {[%emt 0:00:14]} 5. d3 {[%emt 0:00:09]} d6 {[%emt 0:00:41]} 6. Nbd2 {[%emt 0:00:16]} a5 {[%emt 0:00:30]} 7. O-O {[%emt 0:01:44]} O-O {[%emt 0:00:51]} 8. h3 {[%emt 0:03:19]} h6 {[%emt 0:00:10]} 9. Re1 {[%emt 0:00:21]} Be6 {[%emt 0:00:12]} 10. Bb5 {[%emt 0:01:23]} Nd7 {[%emt 0:01:33]} 11. Nf1 {[%emt 0:07:08]} *

[Event "26th Womens ECCC 2022"]
[Site "Mayrhofen"]
[Date "2022.10.03"]
[Round "1.23"]
[White "Levitan, Ronit"]
[Black "Antolak, Julia"]
[Result "0-1"]
[ECO "C54"]
[WhiteElo "2024"]
[BlackElo "2315"]
[Annotator "RC"]
[PlyCount "90"]
[EventDate "2022.10.03"]
[EventType "team-tourn"]
[EventCountry "AUT"]
[SourceTitle "playchess.com"]
[Source "ChessBase"]
[SourceQuality "1"]
[TimeControl "40/5400+30:1800+30"]

1. e4 {[%emt 0:00:15]} e5 {[%emt 0:00:07]} 2. Nf3 {[%emt 0:00:09]} Nc6 {[%emt 0:00:07]} 3. Bc4 {[%emt 0:00:14]} Bc5 {[%emt 0:00:25]} 4. c3 {[%emt 0:00:07]} Nf6 {[%emt 0:00:14]} 5. d3 {[%emt 0:00:09]} d6 {[%emt 0:00:41]} 6. Nbd2 {[%emt 0:00:16]} a5 {[%emt 0:00:30]} 7. O-O {[%emt 0:01:44]} O-O {[%emt 0:00:51]} 8. h3 {[%emt 0:03:19]} h6 {[%emt 0:00:10]} 9. Re1 {[%emt 0:00:21]} Be6 {[%emt 0:00:12]} 10. Bb5 {[%emt 0:01:23]} Nd7 {[%emt 0:01:33]} 11. Nf1 {[%emt 0:07:08]} d5 {[%emt 0:01:27]} 12. exd5 {[%emt 0:08:32]} Bxd5 {[%emt 0:00:09]} 13. Ne3 {[%emt 0:00:19]} Bxe3 {[%emt 0:00:45]} 14. Bxe3 {[%emt 0:00:22]} f5 {[%emt 0:00:49]} 15. c4 {[%emt 0:05:33]} Bf7 {[%emt 0:01:38]} 16. Bxc6 {[%emt 0:06:42]} bxc6 {[%emt 0:00:06]} 17. Qc2 {[%emt 0:04:08]} Qf6 {[%emt 0:12:21]} 18. Bd2 {[%emt 0:03:32]} Bh5 {[%emt 0:03:05]} 19. Nh2 {[%emt 0:00:37]} Rfe8 {[%emt 0:12:05]} 20. Bc3 {[%emt 0:05:56]} Qd6 {[%emt 0:01:52]} 21. f3 {[%emt 0:10:11]} c5 {[%emt 0:05:52]} 22. Nf1 {[%emt 0:03:10]} Bg6 {[%emt 0:06:19]} 23. Nd2 {[%emt 0:02:28]} Nb8 {[%emt 0:04:24]} 24. Rad1 {[%emt 0:03:35]} Nc6 {[%emt 0:03:01]} 25. Nf1 {[%emt 0:08:13]} Re6 {[%emt 0:06:08]} 26. Ne3 {[%emt 0:01:09]} Nd4 {[%emt 0:03:58]} 27. Qf2 {[%emt 0:04:13]} f4 28. Nc2 {[%emt 0:00:39]} Nf5 {[%emt 0:06:38]} 29. b3 {[%emt 0:01:23]} Bh5 {[%emt 0:11:07]} 30. Bb2 {[%emt 0:03:20]} Ra6 {[%emt 0:00:43]} 31. Ba3 {[%emt 0:00:43]} Rc6 {[%emt 0:00:10]} 32. Kh2 {[%emt 0:03:44]} Qe7 {[%emt 0:02:53]} 33. Re4 {[%emt 0:06:00]} Rg6 {[%emt 0:07:26]} 34. d4 {[%emt 0:01:13]} Rg3 {[%emt 0:02:02]} 35. Rd2 {[%emt 0:03:24]} Rcg6 {[%emt 0:01:32]} 36. Rxe5 {[%emt 0:02:32]} Qh4 {[%emt 0:01:04]} 37. Rxf5 {[%emt 0:01:30]} Bxf3 {[%emt 0:00:06]} 38. Ne1 {[%emt 0:00:17]} Bxg2 {[%emt 0:00:21]} 39. Qxg2 {[%emt 0:00:06]} Rxg2+ {[%emt 0:00:15]} 40. Rxg2 {[%emt 0:00:46]} Rxg2+ {[%emt 0:01:00]} 41. Nxg2 {[%emt 0:01:46]} Qg3+ {[%emt 0:00:12]} 42. Kg1 {[%emt 0:00:12]} f3 {[%emt 0:00:13]} 43. Rxf3 {[%emt 0:00:13]} Qxf3 {[%emt 0:00:04]} 44. Bxc5 {[%emt 0:00:07]} Qxh3 {[%emt 0:00:13]} 45. d5 {[%emt 0:01:02]} Qd3 {[%emt 0:00:44]} 0-1

[Event "26th Womens ECCC 2022"]
[Site "Mayrhofen"]
[Date "2022.10.03"]
[Round "1.24"]
[White "Cyfka, Karina"]
[Black "Orian, Noga"]
[Result "1-0"]
[ECO "B24"]
[WhiteElo "2347"]
[BlackElo "1940"]
[Annotator "TA"]
[PlyCount "63"]
[EventDate "2022.10.03"]
[EventType "team-tourn"]
[EventCountry "AUT"]
[SourceTitle "playchess.com"]
[Source "ChessBase"]
[SourceQuality "1"]
[TimeControl "40/5400+30:1800+30"]

{[%evp 9,63,16,17,5,6,17,14,-42,-9,-29,19,9,13,9,25,19,22,31,23,0,66,-28,8,8,25,11,15,24,47,15,16,8,210,205,370,372,421,398,785,671,658,661,661,658,658,646,646,639,628,621,602,606,594,576,1299,1233]} 1. e4 {[%emt 0:00:04]} c5 {[%emt 0:00:04]} 2. Nc3 {[%emt 0:00:11]} Nc6 {[%emt 0:00:07]} 3. Bb5 {[%emt 0:00:18]} Nd4 {[%emt 0:00:08]} 4. Nf3 {[%emt 0:00:36]} a6 {[%emt 0:00:09]} 5. Bd3 {[%emt 0:00:43]} g6 {[%emt 0:00:39]} 6. Nxd4 {[%emt 0:02:04] B23: Closed Sicilian: Lines without g3.} cxd4 {[%emt 0:00:03]} 7. Ne2 {[%emt 0:00:05]} d5 {[%emt 0:02:49]} 8. e5 {[%emt 0:09:06]} (8. c3 $11) 8... Bg7 {[%emt 0:07:09]} (8... f6 $5 {[%cal Rf6e5]}) 9. f4 {[%emt 0:02:07]} Qb6 {[%emt 0:00:15] [#]} (9... f6 $1 {is more appropriate.}) 10. a4 $146 {[%emt 0:06:37][%cal Ba2a4,Ba4a5][%mdl 32]} ({Predecessor:} 10. O-O Nh6 11. a4 f6 12. a5 Qc7 13. exf6 Bxf6 14. c3 Bf5 15. Bxf5 Nxf5 16. g4 {1-0 (37) Maze,S (2547)-Gandrud,V (2267) Helsingor 2013}) 10... f6 {[%emt 0:09:36]} 11. a5 {[%emt 0:01:50]} Qa7 {[%emt 0:08:31]} (11... Qc7 $5 {[%cal Rf6e5]}) 12. O-O {[%emt 0:06:07]} fxe5 {[%emt 0:05:15]} 13. fxe5 {[%emt 0:00:07]} Bxe5 {[%emt 0:05:03]} 14. b3 {[%emt 0:23:57]} Bf5 {[%emt 0:18:52]} (14... Qb8 $11 15. h3 Nf6) 15. Kh1 {[%emt 0:08:40]} (15. Ba3 $14) 15... Bxd3 {[%emt 0:04:06]} 16. cxd3 {[%emt 0:00:07]} Nf6 {[%emt 0:05:56]} 17. Ng1 {[%emt 0:01:02][%mdl 1024] White has compensation.} O-O {[%emt 0:03:12]} 18. Qe2 {[%emt 0:03:08]} Bd6 {[%emt 0:03:14] [#] And now ...e5 would win.} 19. Qe6+ {[%emt 0:00:47]} Kh8 {[%emt 0:01:27]} 20. Bb2 {[%emt 0:01:41] Threatens to win with Ne2.} b5 $2 {[%emt 0:17:46] This move loses the game for Black.} (20... Qc5 $11) 21. Ne2 $18 {[%emt 0:03:41]} Qc7 $2 {[%emt 0:03:20]} (21... Bc5 22. Rac1 Kg7) 22. Rac1 {[%emt 0:11:55]} Qxa5 {[%emt 0:01:05]} 23. Bxd4 {[%emt 0:00:13][%cal Rf1f6] Hoping for Rxf6.} Qxd2 $2 {[%emt 0:00:50]} (23... Qd8 24. Rc6 (24. Qxd5 Ba3 $15) 24... Ba3) 24. Rxf6 {[%emt 0:02:31] White is clearly winning.} exf6 {[%emt 0:00:36]} 25. Bxf6+ {[%emt 0:00:06]} Rxf6 {[%emt 0:00:15]} 26. Qxf6+ {[%emt 0:00:04]} Kg8 {[%emt 0:00:10][%cal Oa8f8]} 27. Qxd6 {[%emt 0:00:39]} Re8 {[%emt 0:02:18][%cal Od2c1]} 28. Qxd5+ {[%emt 0:00:21]} Kh8 {[%emt 0:00:31][%cal Od2c1] aiming for ...Qxc1+!} 29. Qd4+ {[%emt 0:00:36]} Kg8 {[%emt 0:00:08] [#]} 30. Rc7 $1 {[%emt 0:00:17][%csl Gc7][%cal Rd4g7]} Qe1+ {[%emt 0:00:59]} 31. Ng1 {[%emt 0:00:11][%csl Gc7][%cal Rd4g7]} Qe5 {[%emt 0:00:11] Against Qg7+} 32. Qd7 {[%emt 0:00:16] Weighted Error Value: White=0.20 (precise) /Black=0.39} 1-0

[Event "26th Womens ECCC 2022"]
[Site "Mayrhofen"]
[Date "2022.10.03"]
[Round "1.24"]
[White "Konecny, Sophie"]
[Black "Trippold, Denise"]
[Result "*"]
[WhiteElo "1848"]
[BlackElo "2146"]
[Annotator "TA"]
[PlyCount "28"]
[EventDate "2022.10.03"]
[EventType "team-tourn"]
[EventCountry "AUT"]
[SourceTitle "playchess.com"]
[Source "ChessBase"]
[SourceQuality "1"]
[TimeControl "40/5400+30:1800+30"]

{[%evp 9,15,2,4,8,2,13,26,-20]} 1. e4 {[%emt 0:00:04]} c5 {[%emt 0:00:04]} 2. Nc3 {[%emt 0:00:11]} Nc6 {[%emt 0:00:07]} 3. Bb5 {[%emt 0:00:18]} Nd4 {[%emt 0:00:08]} 4. Nf3 {[%emt 0:00:36]} a6 {[%emt 0:00:09]} 5. Bd3 {[%emt 0:00:43]} g6 {[%emt 0:00:39]} 6. Nxd4 {[%emt 0:02:04] B23: Closed Sicilian: Lines without g3.} cxd4 {[%emt 0:00:03]} 7. Ne2 {[%emt 0:00:05]} d5 {[%emt 0:02:49]} 8. e5 {[%emt 0:09:06] [#] An uneventful encounter.  Weighted Error Value: White=0.00 (flawless) /Black=0.05 (flawless)} (8. exd5 $142 Qxd5 9. O-O) {Predecessor:} 8... Bg7 $146 9. f4 f6 10. exf6 Nxf6 11. O-O O-O 12. b3 Qd6 13. a4 Nh5 14. Ba3 Qc7 {½-½ (38) Motylev,A (2642)-Sjugirov,S (2661) Moscow 2021} *

[Event "26th Womens ECCC 2022"]
[Site "Mayrhofen"]
[Date "2022.10.03"]
[Round "1.25"]
[White "Ptacnikova, Lenka"]
[Black "Sukandar, Irine Kharisma"]
[Result "1/2-1/2"]
[ECO "A05"]
[WhiteElo "2055"]
[BlackElo "2401"]
[Annotator "TA"]
[PlyCount "129"]
[EventDate "2022.10.03"]
[EventType "team-tourn"]
[EventCountry "AUT"]
[SourceTitle "playchess.com"]
[Source "ChessBase"]
[SourceQuality "1"]
[TimeControl "40/5400+30:1800+30"]

{[%evp 16,129,-14,-33,-10,-34,-26,-51,-47,-54,0,0,0,-34,-19,-19,-19,-28,-25,-37,-35,-38,0,0,58,-5,64,46,59,55,61,37,22,37,89,58,67,18,70,0,0,-10,-8,-24,0,0,0,0,0,0,0,-24,-24,-165,-157,-147,-159,-158,-158,-170,-135,-143,-143,-175,-143,-159,-143,-175,-168,-175,-175,-175,-72,-72,-72,-80,-13,-13,-5,-5,0,0,0,-5,0,0,0,0,0,0,0,0,0,0,0,0,0,0,0,0,0,0,0,0,0,0,0,0,0,0,0,0,0,0,0,0]} 1. Nf3 {[%emt 0:00:03]} Nf6 {[%emt 0:01:01]} 2. g3 {[%emt 0:00:18]} d5 {[%emt 0:00:38]} 3. Bg2 {[%emt 0:00:52]} e6 {[%emt 0:04:51]} 4. d4 {[%emt 0:03:11]} c5 {[%emt 0:04:51]} 5. c4 {[%emt 0:06:35]} dxc4 {[%emt 0:07:09]} 6. Qa4+ {[%emt 0:07:03]} Nbd7 {[%emt 0:00:54]} 7. O-O a6 {[%emt 0:02:30]} 8. dxc5 {[%emt 0:14:42]} Bxc5 {[%emt 0:00:32]} 9. Qxc4 {[%emt 0:00:16]} b5 {[%emt 0:01:03] E03: Open Catalan: 5 Qa4+ Nbd7 6 Qxc4.} 10. Qb3 {[%emt 0:00:25][%cal Of3e5]} (10. Qd3 $5 {[%cal Rf3e5]}) 10... Bb7 {[%emt 0:00:24]} 11. Nc3 {[%emt 0:00:40]} O-O {[%emt 0:00:32] Black is slightly better.} 12. Bf4 {[%emt 0:01:02]} b4 {[%emt 0:09:29]} (12... Qb6 $15) 13. Na4 $11 {[%emt 0:01:23] [#]} Bd5 $146 {[%emt 0:00:41]} ({Predecessor:} 13... Be7 14. Ne1 Bxg2 15. Nxg2 Qa5 16. Rfd1 Qh5 17. f3 Qb5 18. e4 Rac8 19. Rd2 g5 {0-1 (35) Dunkelblum,A-Porreca,G Dubrovnik 1950}) 14. Qd1 {[%emt 0:01:01]} (14. Qc2 $5 {[%cal Ra4c5]}) 14... Be7 {[%emt 0:01:44]} 15. Rc1 {[%emt 0:08:05]} Rc8 {[%emt 0:05:50]} 16. b3 {[%emt 0:03:40]} Qa5 {[%emt 0:01:35]} 17. Nd2 {[%emt 0:09:59]} Bxg2 {[%emt 0:12:03]} 18. Kxg2 {[%emt 0:00:12]} Qd5+ {[%emt 0:06:10]} 19. f3 {[%emt 0:03:51]} e5 {[%emt 0:04:46]} (19... Qb5 $11) 20. Be3 {[%emt 0:02:53]} ({White should try} 20. Bg5 $14) 20... Ng4 {[%emt 0:07:16]} (20... Qe6 $11) 21. Bg1 $14 {[%emt 0:07:11]} Rxc1 {[%emt 0:02:00]} 22. Qxc1 {[%emt 0:00:04] [#] aiming for e4.} Bg5 {[%emt 0:00:39]} 23. Qc4 {[%emt 0:16:15]} Qxd2 {[%emt 0:01:13]} 24. fxg4 {[%emt 0:04:24]} Nf6 {[%emt 0:03:40]} (24... Qxa2 $2 25. Bc5 Nxc5 26. Nxc5 $18) (24... Be7 $14) 25. Nc5 {[%emt 0:04:03]} h6 {[%emt 0:07:11]} 26. Nxa6 {[%emt 0:04:35]} (26. Rf3 $1 $14) 26... Nd5 {[%emt 0:04:58]} (26... Qxa2 $11 27. Nxb4 Qa8+ 28. Qc6 Nxg4) 27. Nc5 {[%emt 0:00:26]} (27. Bc5 $14) 27... Rc8 $11 {[%emt 0:06:08]} 28. Qd3 Qxd3 {[%emt 0:00:49]} 29. Nxd3 {[%emt 0:01:06]} Rc2 {[%emt 0:02:33]} (29... e4 $5 {[%cal Re4d3]} 30. Ne5 Rc2 $15) 30. Kf3 {[%emt 0:00:23]} Rxa2 {[%emt 0:00:27]} 31. Nxe5 {[%emt 0:00:42]} Rb2 {[%emt 0:00:36]} 32. Ra1 {[%emt 0:00:38]} Rxb3+ {[%emt 0:00:17]} 33. Kg2 {[%emt 0:00:12]} Ra3 {[%emt 0:00:51]} 34. Rd1 {[%emt 0:00:29]} (34. Rb1 $11 {and White is okay.}) 34... Ne3+ $19 {[%emt 0:01:01]} 35. Bxe3 {[%emt 0:00:05]} Rxe3 $17 {[%emt 0:00:03][%mdl 4096] Endgame KRB-KRN} ({Reject} 35... Bxe3 $6 36. Rd8+ Kh7 37. Nxf7 $11) 36. Nf3 {[%emt 0:00:44]} Rxe2+ {[%emt 0:00:14]} 37. Kf1 {[%emt 0:00:04]} Rc2 {[%emt 0:01:30] And now ...b3 would win.} 38. Nxg5 {[%emt 0:00:29]} hxg5 {[%emt 0:00:06] KR-KR} 39. Rd8+ {[%emt 0:00:09]} Kh7 {[%emt 0:00:01] White must now prevent ...b3.} 40. Rb8 {[%emt 0:00:13]} Rc4 {[%emt 0:01:38]} 41. h3 {[%emt 0:31:08]} Rc3 {[%emt 0:02:19]} 42. Kf2 {[%emt 0:00:00]} b3 {[%emt 0:00:16][%cal Bb4b3,Bb3b2][%mdl 32]} 43. Rb5 {[%emt 0:00:00]} Rc2+ {[%emt 0:00:44]} (43... Kg6 $19 {has better winning chances.} 44. h4 f6) 44. Kf3 {[%emt 0:00:00] [#]} b2 $1 {[%emt 0:05:00]} 45. h4 {[%emt 0:00:00]} f6 {[%emt 0:05:34]} ({Black should play} 45... gxh4 $17 {( -> ...h3)} 46. gxh4 Kh6) 46. hxg5 $11 {[%emt 0:00:00] The position is equal.} fxg5 {[%emt 0:00:02]} 47. Rb6 {[%emt 0:00:00]} Kg8 {[%emt 0:01:49]} 48. Ke4 {[%emt 0:00:00]} Kf7 {[%emt 0:04:11]} 49. Kf5 {[%emt 0:00:00] Inhibits g6+.} Ke7 {[%emt 0:03:08]} 50. Kxg5 {[%emt 0:00:00]} Kd7 {[%emt 0:00:19]} 51. Rb3 {[%emt 0:00:00]} Kc7 {[%emt 0:01:02]} 52. Kf5 {[%emt 0:00:00]} Rf2+ {[%emt 0:01:10]} 53. Kg5 {[%emt 0:00:00]} Rd2 {[%emt 0:02:12]} 54. Kf5 {[%emt 0:00:00]} Rf2+ {[%emt 0:04:21]} 55. Kg5 {[%emt 0:00:00]} Rg2 {[%emt 0:00:06]} 56. Kg6 {[%emt 0:00:00]} Rxg3 {[%emt 0:00:14]} 57. Rxb2 {[%emt 0:00:00]} Rxg4+ {[%emt 0:00:05]} 58. Kf5 {[%emt 0:00:00]} Rg1 {[%emt 0:00:12]} 59. Rd2 {[%emt 0:00:47]} Kc6 {[%emt 0:00:30]} 60. Rd8 {[%emt 0:06:07]} Kc5 {[%emt 0:00:29]} 61. Rd7 {[%emt 0:00:37]} g6+ {[%emt 0:00:40]} 62. Kf4 {[%emt 0:00:35]} Kc4 {[%emt 0:00:12]} 63. Rd6 {[%emt 0:00:37]} g5+ {[%emt 0:00:25]} 64. Kf3 {[%emt 0:00:06]} Re1 {[%emt 0:00:28]} 65. Kg4 {[%emt 0:00:20] Black had all chances to win.  Weighted Error Value: White=0.13 (very precise) /Black=0.14 (very precise)} 1/2-1/2